Cogmind - Beta 13 @@@ ROGUE MODE // 2024.04.16 @ 14:46:49 Player: Person Guy Result: Self-destructed Performance ------------- Evolutions (2) 1000 Regions Visited (5) 1000 Robots Destroyed (37) 185 Value Destroyed (803) 803 Prototype IDs (4) 80 Alien Tech Used (0) 0 Bonus (35) 35 TOTAL SCORE: 3103 Bonus ------- Follower Combat Kills 35 Cogmind --------- Core Integrity 354/550 Matter 171/300 Energy 10/100 System Corruption 0% Temperature Cool (15) Movement Core (450) Ox8 Location -8/Materials Parts ------- > --- POWER (1) -------- (None) > --- PROPULSION (3) --- (None) > --- UTILITY (4) ------ Large Storage Unit Improved Utility Shielding Hacking Suite > --- WEAPON (3) ------- Heavy Particle Gun > --- INVENTORY (15) --- Heat Sink Large Storage Unit Improved Utility Shielding Makeshift Hacking Suite System Shield Rocket Launcher Peak State ------------ > --- POWER ------------ (None) > --- PROPULSION ------- Advanced Treads > --- UTILITY ---------- Large Storage Unit Improved Utility Shielding Hacking Suite > --- WEAPON ----------- Heavy Particle Gun > --- INVENTORY -------- Heat Sink Large Storage Unit Improved Utility Shielding Makeshift Hacking Suite System Shield Rocket Launcher [Rating: 15] Favorites ----------- Power Ion Engine Engine Ion Engine Propulsion Light Treads Treads Light Treads Leg Carbon-fiber Leg Utility Large Storage Unit Storage Large Storage Unit Hackware Hacking Suite Protection Weapon Shielding Weapon Light Assault Rifle Energy Gun Heavy Particle Gun Ballistic Gun Light Assault Rifle Ballistic Cannon Light Cannon Launcher Rocket Launcher Build | -11 -10 -10 -10 -9 -8 ------- Run | Yrd Mat Min Exi Min Mat Slots Evolved 4 | . . . . . 4 Power . | . . . . . . Propulsion 1 | . . . . . 1 Utility 2 | . . . . . 2 Weapon 1 | . . . . . 1 Parts Attached 21 | 6 2 3 . 4 6 Power 2 | 1 . 1 . . . Engine 2 | 1 . 1 . . . Core . | . . . . . . Reactor . | . . . . . . Propulsion 6 | 2 . 1 . 2 1 Treads 4 | 2 . 1 . . 1 Leg 2 | . . . . 2 . Wheel . | . . . . . . Hover . | . . . . . . Flight . | . . . . . . Utility 6 | 1 2 . . . 3 Device . | . . . . . . Storage 3 | 1 1 . . . 1 Processor . | . . . . . . Hackware 1 | . . . . . 1 Protection 2 | . 1 . . . 1 Artifact . | . . . . . . Weapon 7 | 2 . 1 . 2 2 Energy Gun 1 | . . . . . 1 Energy Cannon . | . . . . . . Ballistic Gun 2 | 2 . . . . . Ballistic Cannon 3 | . . 1 . 2 . Launcher 1 | . . . . . 1 Special Weapon . | . . . . . . Impact Weapon . | . . . . . . Slashing Weapon . | . . . . . . Piercing Weapon . | . . . . . . Special Melee Weapon . | . . . . . . Unidentified Prototypes 1 | . . . . . 1 Parts Lost 9 | . . . . 4 5 Power 1 | . . . . . 1 Propulsion 3 | . . . . 2 1 Utility 1 | . . . . 1 . Weapon 4 | . . . . 1 3 Highest Loss Streak 4 | . . . . 2 4 To Critical Strikes . | . . . . . . Average Slot Usage (%) 92 | . 98 99 100 86 49 Engine 12 | . 14 13 14 14 5 Treads 23 | . 28 28 28 13 4 Leg 1 | . . . . 10 4 Storage 13 | . 14 14 14 14 9 Protection 11 | . 12 14 14 5 1 Ballistic Gun 16 | . 28 17 14 9 . Ballistic Cannon 10 | . . 10 14 18 16 Naked Turns . | . . . . . . Heaviest Build 31 | 13 29 30 30 31 31 Greatest Support 40 | 40 40 40 40 40 22 Greatest Overweight (x) 2 | . . . . 2 2 Average Overweight (x) . | . . . . . 1 Largest Inventory Capacity 15 | 8 15 15 15 15 15 Average Capacity 14 | 6 13 15 15 15 15 Most Carried 9 | 2 9 9 7 9 7 Average Carried 6 | . 4 7 6 6 5 Final Capacity 15 | 8 15 15 15 15 15 Final Carried 9 | 1 9 6 7 5 6 Class Distribution -------------------- 100% | Mutant Dominant Class ---------------- Mutant | -10/Materials Mutant | -10/Mines Mutant | -10/Exiles Mutant | -9/Mines Mutant | -8/Materials Resources | -11 -10 -10 -10 -9 -8 ----------- Run | Yrd Mat Min Exi Min Mat Matter Collected 844 | 249 108 181 . 156 150 Remotely . | . . . . . . Salvage Created 982 | . 355 165 . 120 342 Parts 76 | . 29 23 . 10 14 Haulers Intercepted 2 | . 1 . . . 1 Recyclers Shooed 1 | . . . . . 1 Parts Field Recycled . | . . . . . . Retrieved Matter . | . . . . . . Parts Self-Destructed . | . . . . . . Prevented . | . . . . . . Kills | -11 -10 -10 -10 -9 -8 ------- Run | Yrd Mat Min Exi Min Mat Combat Hostiles Destroyed 32 | . 8 9 . 9 6 Guns 17 | . 8 7 . 1 1 Cannons 14 | . . 2 . 7 5 AOE 1 | . . . . 1 . Classes Destroyed 11 | . 5 2 . 1 3 Worker 1 | . 1 . . . . Builder 1 | . . 1 . . . Tunneler 1 | . . 1 . . . Hauler 2 | . 1 . . . 1 Mechanic 1 | . . . . . 1 Operator 2 | . 2 . . . . Swarmer 15 | . 2 9 . 4 . Grunt 11 | . 6 . . 2 3 Sentry 2 | . . . . . 2 Hunter 1 | . . . . . 1 Assembled 3 | . . . . 3 . Best Kill Streak 6 | . 3 6 . 4 4 Combat Bots Only 6 | . 3 6 . 4 2 Max Kills in Single Turn 1 | . 1 1 . 1 1 Gunslinging . | . . . . . . Exploded 1 | . . . . 1 . Melee . | . . . . . . Uniques/NPCs Destroyed . | . . . . . . Combat | -11 -10 -10 -10 -9 -8 -------- Run | Yrd Mat Min Exi Min Mat Hostile Shots Fired 179 | . 39 35 . 50 55 Missed 45 | . 16 6 . 8 15 Damage Taken 1728 | . 260 243 . 613 612 Core 342 | . 27 10 . 109 196 Absorbed by Shields . | . . . . . . Redirected to Shielding 70 | . 25 19 . 6 20 Core Remaining (%) 70 | 100 . . . 41 . Volleys Fired 123 | . 41 28 . 21 33 Largest 2 | . 2 2 . 2 2 Hottest 70 | . 40 55 . 70 70 Shots Fired 234 | . 82 56 . 41 55 Gun 152 | . 82 46 . 13 11 Cannon 82 | . . 10 . 28 44 Launcher . | . . . . . . Special . | . . . . . . Kinetic 223 | . 82 56 . 41 44 Thermal 11 | . . . . . 11 Explosive . | . . . . . . Electromagnetic . | . . . . . . Robot Hit Streak 14 | . 9 6 . 4 14 Robot Miss Streak 3 | . 3 3 . 3 2 Penetration Max . | . . . . . . Secondary Targets 3 | . 1 2 . . . Max Gunslinging Chain 1 | . 1 1 . . . Shots Hit Robots 145 | . 53 37 . 17 38 Core Hits 61 | . 20 15 . 11 15 Critical Kills 1 | . . 1 . . . Critical Parts Destroyed . | . . . . . . Critical Strikes 7 | . . 1 . 2 4 Burn 1 | . . . . . 1 Destroy 1 | . . 1 . . . Blast 5 | . . . . 2 3 Melee Attacks . | . . . . . . Impact . | . . . . . . Slashing . | . . . . . . Piercing . | . . . . . . Sneak Attacks . | . . . . . . Combat Hostiles . | . . . . . . Follow-up Attacks . | . . . . . . Damage Inflicted 2094 | . 567 430 . 394 703 Guns 1109 | . 567 295 . 23 224 Cannons 894 | . . 132 . 283 479 Explosions 88 | . . . . 88 . Melee . | . . . . . . Ramming 3 | . . 3 . . . Kinetic 1779 | . 567 427 . 306 479 Thermal 312 | . . . . 88 224 Explosive . | . . . . . . Electromagnetic . | . . . . . . Impact . | . . . . . . Slashing . | . . . . . . Piercing . | . . . . . . Highest Corruption . | . . . . . . Average Corruption . | . . . . . . Corruption Purged . | . . . . . . Corruption Blocked . | . . . . . . Overload Shots . | . . . . . . Overflow Damage 38 | . . 6 . 32 . Projectiles 25 | . . 6 . 19 . Explosions 13 | . . . . 13 . Melee . | . . . . . . Knockbacks 7 | . . 1 . 3 3 Impact . | . . . . . . Kinetic 7 | . . 1 . 3 3 Secondary . | . . . . . . Self-Inflicted Damage . | . . . . . . Shots . | . . . . . . Rammed 1 | . . 1 . . . Targets Rammed 1 | . . 1 . . . Kicked . | . . . . . . Crushed . | . . . . . . Highest Temperature 76 | . 12 28 . 76 43 Average Temperature 21 | . 7 12 . 31 18 Received Heat Transfer 434 | . 126 . . 92 216 Siege Activations . | . . . . . . Robots Corrupted . | . . . . . . Combat Hostiles . | . . . . . . Parts Fried . | . . . . . . Impact Corruptions . | . . . . . . Robots Melted . | . . . . . . Combat Hostiles . | . . . . . . Parts Melted . | . . . . . . Heat Transferred 581 | . . . . 100 481 Parts Sabotaged . | . . . . . . Parts Stolen . | . . . . . . Parts Stripped . | . . . . . . Power Chain Reactions . | . . . . . . Alert | -11 -10 -10 -10 -9 -8 ------- Run | Yrd Mat Min Exi Min Mat Peak Influence 251 | . 251 242 . 129 198 Initial 97 | . . 97 . . 50 Average 80 | . 97 87 . 31 87 Maximum Alert Level 1 | . 1 1 . . . Low Security (%) 87 | 100 74 86 . 100 100 Level 1 12 | . 25 13 . . . Level 2 . | . . . . . . Level 3 . | . . . . . . Level 4 . | . . . . . . Level 5 . | . . . . . . High Security . | . . . . . . Max Security . | . . . . . . Squads Dispatched 3 | . 2 . . . 1 Investigation 1 | . . . . . 1 Extermination . | . . . . . . Reinforcement 2 | . 2 . . . . Assault . | . . . . . . Garrison . | . . . . . . Intercept . | . . . . . . Searches Triggered . | . . . . . . Construction Impeded . | . . . . . . Haulers Reinforced . | . . . . . . Active Scanning Responses . | . . . . . . Cargo Convoy Interrupts . | . . . . . . Stealth | -11 -10 -10 -10 -9 -8 --------- Run | Yrd Mat Min Exi Min Mat Distress Signals 4 | . 2 . . . 2 Communications Jammed . | . . . . . . Distress Signals . | . . . . . . Times Spotted 58 | . 22 11 . 17 8 Peak Tracking Total 7 | . 6 6 . 7 3 Tactical Retreats 4 | . 1 1 . 2 . Traps | -11 -10 -10 -10 -9 -8 ------- Run | Yrd Mat Min Exi Min Mat Traps Triggered 1 | . . . . . 1 Indirectly . | . . . . . . Trap Hack Attempts . | . . . . . . Triggered . | . . . . . . Disarmed . | . . . . . . Reprogrammed . | . . . . . . Reused . | . . . . . . Traps Extracted . | . . . . . . Installed . | . . . . . . Triggered . | . . . . . . Machines | -11 -10 -10 -10 -9 -8 ---------- Run | Yrd Mat Min Exi Min Mat Machines Disabled 2 | . . . . 2 . Max in Single Turn 2 | . . . . 2 . Machines Repaired . | . . . . . . Machines Dismantled . | . . . . . . Machines Sabotaged . | . . . . . . Overloaded Fab Kills . | . . . . . . Hacking | -11 -10 -10 -10 -9 -8 --------- Run | Yrd Mat Min Exi Min Mat Machines Accessed 7 | . 3 . 4 . . Terminals 3 | . 3 . . . . Fabricators . | . . . . . . Repair Stations . | . . . . . . Recycling Units . | . . . . . . Scanalyzers . | . . . . . . Garrison Access . | . . . . . . Total Hacks 54 | . 9 . 45 . . Successful 49 | . 4 . 45 . . Failed 5 | . 5 . . . . Catastrophic . | . . . . . . Database Lockouts . | . . . . . . Manual 6 | . 6 . . . . Terminals 9 | . 9 . . . . Fabricators . | . . . . . . Repair Stations . | . . . . . . Recycling Units . | . . . . . . Scanalyzers . | . . . . . . Garrison Access . | . . . . . . Terminal Hacks 47 | . 2 . 45 . . Record 45 | . . . 45 . . Prototype ID Bank 1 | . 1 . . . . Locate Traps 1 | . 1 . . . . Fabricator Hacks . | . . . . . . Repair Station Hacks . | . . . . . . Recycling Unit Hacks . | . . . . . . Scanalyzer . | . . . . . . Garrison Access Hacks . | . . . . . . Unauthorized Hacks 2 | . 2 . . . . Terminals 2 | . 2 . . . . Assimilate 1 | . 1 . . . . Operators 1 | . 1 . . . . Fabricators . | . . . . . . Repair Stations . | . . . . . . Recycling Units . | . . . . . . Scanalyzers . | . . . . . . Garrison Access . | . . . . . . Data Cores Recovered . | . . . . . . Used . | . . . . . . Hacking Detections 3 | . 3 . . . . Full Trace Events . | . . . . . . Feedback Events . | . . . . . . Feedback Blocked . | . . . . . . Robot Schematics Acquired . | . . . . . . Robots Built . | . . . . . . Authchips . | . . . . . . Time . | . . . . . . Total Robot Build Rating . | . . . . . . Part Schematics Acquired . | . . . . . . Parts Built . | . . . . . . Authchips . | . . . . . . Time . | . . . . . . Total Part Build Rating . | . . . . . . Parts Repaired . | . . . . . . Time . | . . . . . . Parts Recycled . | . . . . . . Recycled Matter . | . . . . . . Retrieved Matter . | . . . . . . Retrieved Components . | . . . . . . Parts Scanalyzed . | . . . . . . Part Schematics Acquired . | . . . . . . Parts Damaged . | . . . . . . Bothacking | -11 -10 -10 -10 -9 -8 ------------ Run | Yrd Mat Min Exi Min Mat Used RIF Installer . | . . . . . . Robots Hacked . | . . . . . . Non-combat . | . . . . . . Combat . | . . . . . . Robot Hacks Applied . | . . . . . . Relay Couplers Released . | . . . . . . Fabnet Peak Effective % . | . . . . . . Robots Rewired 3 | . . . 3 . . Allies Hacked . | . . . . . . Hacks Repelled . | . . . . . . Allies | -11 -10 -10 -10 -9 -8 -------- Run | Yrd Mat Min Exi Min Mat Total Allies 3 | . . . 3 . . Largest Group 3 | . . . 3 3 . Highest-Rated Group 50 | . . . 50 50 . Highest-Rated Ally 21 | . . . 21 21 . Total Orders . | . . . . . . Ally Attacks 17 | . . . . 17 . Total Damage 246 | . . . . 246 . Kills 2 | . . . . 2 . Allies Corrupted . | . . . . . . Allies Melted . | . . . . . . Intel | -11 -10 -10 -10 -9 -8 ------- Run | Yrd Mat Min Exi Min Mat Robot Analysis Total . | . . . . . . Derelict Logs Recovered 1 | . . 1 . . . Drone Launches . | . . . . . . Drone Recoveries . | . . . . . . Exploration | -11 -10 -10 -10 -9 -8 ------------- Run | Yrd Mat Min Exi Min Mat Turns Passed 3625 | 63 775 1096 885 384 422 Spaces Moved 1866 | 37 398 620 514 168 129 Core 7 | 7 . . . . . Treads 1716 | 30 398 620 514 100 54 Legs 143 | . . . . 68 75 Wheels . | . . . . . . Hover . | . . . . . . Flight . | . . . . . . Fastest Speed 50 | 50 160 160 160 120 225 Average Speed 167 | 139 160 160 160 181 245 Slowest Speed 260 | 160 160 160 160 260 260 Overloaded Moves . | . . . . . . Propulsion Burnouts . | . . . . . . Robots Hopped . | . . . . . . Cave-ins Triggered . | . . . . . . Exploration Rate (%) 48 | 4 62 97 88 31 10 Regions Visited 5 Branch Regions 3 Pre-discovered Areas 2 | . . 1 1 . . Known Exits Taken . | . . . . . . Unknown Exits Taken 5 | 1 1 1 1 1 . Scrap Searched 1 | . . 1 . . . Spaces Dug . | . . . . . . Terrain Destroyed 23 | . . . . 23 . Melee . | . . . . . . Projectile . | . . . . . . AOE 23 | . . . . 23 . Terrain Rammed . | . . . . . . Walls Destroyed . | . . . . . . Machines Disabled . | . . . . . . Actions | -11 -10 -10 -10 -9 -8 --------- Run | Yrd Mat Min Exi Min Mat Total 2155 | 49 463 675 577 211 180 Wait 49 | . 12 21 2 13 1 Move 1861 | 36 397 619 513 167 129 Hop . | . . . . . . Pick Up 28 | 7 10 . 1 3 7 Fast Attach . | . . . . . . Attach 20 | 6 1 3 . 4 6 Detach 1 | . . . . . 1 Swap 2 | . 1 . . . 1 Drop 9 | . 1 3 . 3 2 Fire 123 | . 41 28 . 21 33 Melee . | . . . . . . Ram . | . . . . . . Kick . | . . . . . . Crush 1 | . . 1 . . . Escape Stasis . | . . . . . . Rewire 61 | . . . 61 . . Trap . | . . . . . . Miscellaneous . | . . . . . . Route ------- -11/Scrapyard -10/Materials (discovered 4 exits: [*Mat x3] / [*Min]) -10/Mines (discovered 4 exits: [*Mat x2] / *Exi / [*Sub]) -10/Exiles (discovered 2 exits: [*Min x2]) -9/Mines -8/Materials History --------- Turn | Location | Event 9 | -11/Scrapyard | Discovered new exit (range 15) 64 | -11/Scrapyard | Entered Materials 284 | -10/Materials | Discovered new exit (range 10) 307 | -10/Materials | Build established: Mutant 349 | -10/Materials | Discovered new exit (range 15) 385 | -10/Materials | Discovered new exit (range 16) 485 | -10/Materials | Discovered new exit (range 15) 839 | -10/Materials | Entered Mines 884 | -10/Mines | Found a hidden stash of uninstalled traps 1104 | -10/Mines | Discovered new exit (range 6) 1230 | -10/Mines | Discovered new exit (range 7) 1395 | -10/Mines | Discovered new exit (range 12) 1400 | -10/Mines | Learned location of Mines (-9) 1929 | -10/Mines | Deemed a non-threat by the Exiles lab entrance 1929 | -10/Mines | Discovered new exit (range 5) 1935 | -10/Mines | Entered Exiles 1935 | -10/Exiles | Found Exiles lab destroyed 1959 | -10/Exiles | Discovered new exit (range 15) 2331 | -10/Exiles | Learned location of Zion (-7) 2801 | -10/Exiles | Discovered new exit (range 14) 2820 | -10/Exiles | Entered Mines 2820 | -9/Mines | Accompanied by 3 allies 2827 | -9/Mines | Received a Rocket Launcher from a helpful Derelict 2907 | -9/Mines | Assembled infested the area 2912 | -9/Mines | Assisted by a Guerilla fighting off Assembled 2975 | -9/Mines | Lost 3 allies 3161 | -9/Mines | Core integrity fell below 50% 3175 | -9/Mines | Discovered new exit (range 11) 3204 | -9/Mines | Entered Materials 3204 | -8/Materials | Evolved 4 slots: Propulsion x1, Utility x2, Weapon x1 3626 | -8/Materials | Self-destructed Last Messages --------------- Coupler. 03605_ R-06 Scavenger collects Ion Engine. 03608_ R-06 Scavenger collects Faulty Hvy. Particle Gun. 03608_ R-06 Scavenger collects Prototype Energy Gun. 03609_ R-06 Scavenger collects Weight Redist. System. 03610_ R-06 Scavenger collects Lgt. Treads. 03612_ G-47 Trooper suffers critical hit (Burn). 03613_ G-47 Trooper overheating. 03614_ Adv. Treads destroyed. 03618_ G-47 Trooper heat short circuits Aluminum Leg. 03618_ G-47 Trooper destroyed. 03618_ R-06 Scavenger collects Aluminum Leg. 03619_ G-47 Trooper heat short circuits Aluminum Leg. 03619_ R-06 Scavenger collects Particle Gun. 03620_ R-06 Scavenger collects Aluminum Leg. Map ----- +----------------------------------------------------+ | ??????????????????#####???##!! !##???????????????? | | ?????????########## #???#! !#???????????????? | | ?????????# # #???# #???????????????? | | ?????????# """ "" # #???### ##??????????????? | | ?????????# """ "" # ####### #??????????????? | | ?????????# """ T" # #??????????????? | | ?????????# """ "" + #??????????????? | | ?????????# """ "" # #??????????????? | | ?????????# ########### #??????????????? | | ?????????# #?????????## ##??????????????? | | ?????????# #??????????# #???????????????? | | ?????????##########?########## #???????????????? | | ????????????????????? # #???????????????? | | ??????????????????????""""" # #???????????????? | | ????????????????????? """"" + ##########??????? | | ????????????????????? """"" # # #??????? | | ????????????????????? """"" # # #??????? | | ????????????????????? """"" # # #??????? | | ????????????????????? """"" # # #??????? | | ????????????????????? """"" # + #??????? | | ????????????????????# # # #??????? | | ????????????????????########## # #??????? | | ??????????????????????###????# # #??????? | | ??????????????????????# ###### %%# #??????? | | ?????????????########## ! # ##########??????? | | ?????? + @ # % #???????????????? | | ?????????????########## g%k% %+ ????????????? | | ??????????????????????# !% #r% # ????????? | | ??????????????????????# !!! %# %#???????????????? | | ??????????????????????# !! # %#???????????????? | | ??????????????????????######## %%#???????????????? | | ?????????????????????????????# #???????????????? | | ?????????????????????????????# % #???????????????? | | ?????????????????????????????/ ???????????????? | | ?????????????????????????????# ??????????????? | | ?????????????????????????????# ??????????????? | | ?????????????????????????????? ###?????????????? | | ?????????????????????????????? #???????????????? | | ?????????????????????????????? #???????????????? | | ?????????????????????????????? #???????????????? | | ?????????????????????????????? ????????????????? | | ?????????????????????????????????????????????????? | | ?????????????????????????????????????????????????? | | ?????????????????????????????????????????????????? | | ?????????????????????????????????????????????????? | | ?????????????????????????????????????????????????? | | ?????????????????????????????????????????????????? | | ?????????????????????????????????????????????????? | | ?????????????????????????????????????????????????? | | ?????????????????????????????????????????????????? | +----------------------------------------------------+ Best States ------------- Heat Dissipation 31 Energy Generation 10 Energy Capacity 250 Matter Stores 300 Matter Capacity 300 Sight Range 16 Terrain Scan Density 10 Utility Shielding 66 Weapon Shielding 33 Evasion (%) 45 Recoil Reduction 2 Offensive Hacking 10 Item Schematics ----------------- None Robot Schematics ------------------ None Fabricated ------------ Nothing Alien Tech Used ----------------- None Achievements -------------- None Challenges ------------ None Game ------ Seed MolecularSensorInjector Manual? 0 Play Time 00:17:35 Cumulative 67.6 hours Start 2024.04.16 @ 03:00:37 End 2024.04.16 @ 14:46:49 Sessions 3 Manual Loads 0 Difficulty Rogue Special Mode None Game No. 60 Rogue 60 Adventurer 0 Explorer 0 Win Type - Total 0 Types 0/0/0/0/0/0/0/0/0 Lore% 39 Gallery% 49 Achievement% 30 Wizard Run 0 Options --------- Layout 1 ASCII 0 Keyboard 0 Movement Numpad Keybinds 0 Fullscreen 1 Font 24/Smallcaps Map View 50x35 Zoom Use 1% Tactical HUD 1 Map Filters NONE Filters NONE Steam 1 RUN: 5c7dc54b-39a4-4994-9beb-c0974bb794b4